Cogmind - Beta 13 @@@ ROGUE MODE // 2024.06.12 @ 09:55:58 Player: Kat Result: Self-destructed Performance ------------- Evolutions (2) 1000 Regions Visited (5) 1000 Robots Destroyed (64) 320 Value Destroyed (1411) 1411 Prototype IDs (30) 600 Alien Tech Used (0) 0 Bonus (400) 400 TOTAL SCORE: 4731 Bonus ------- High Alert Combat Kills 19 Follower Combat Kills 81 Aligned with FarCom 300 Cogmind --------- Core Integrity 391/550 Matter 19/300 Energy 290/290 System Corruption 0% Temperature Warning (318) Movement Walking (130) Location -8/Materials Parts ------- > --- POWER (1) -------- Improved Deuterium Engine > --- PROPULSION (4) --- Improved Titanium Leg Improved Titanium Leg Improved Titanium Leg Improved Titanium Leg > --- UTILITY (4) ------ Medium Storage Unit Improved Medium Armor Plating Trap Reconfigurator > --- WEAPON (2) ------- Field Laser Field Laser > --- INVENTORY (10) --- Airjet Airjet Airjet Coolant Injector Experimental Sensor Array Improved Signal Interpreter Improved Light Armor Plating Heavy Missile Launcher Peak State ------------ > --- POWER ------------ Improved Deuterium Engine > --- PROPULSION ------- Improved Titanium Leg Improved Titanium Leg Improved Titanium Leg Improved Titanium Leg > --- UTILITY ---------- Medium Storage Unit Propulsion Shielding Improved Medium Armor Plating Trap Reconfigurator > --- WEAPON ----------- Enhanced Autogun Enhanced Autogun > --- INVENTORY -------- Airjet Airjet Airjet Coolant Injector Experimental Sensor Array Improved Signal Interpreter Improved Light Armor Plating Field Laser Heavy Missile Launcher Heavy Missile Launcher [Rating: 46] Favorites ----------- Power Improved Deuterium Engine Engine Improved Deuterium Engine Power Core Light Nuclear Core Propulsion Improved Titanium Leg Leg Improved Titanium Leg Wheel Armored Wheel Flight Unit Improved VTOL Module Utility Propulsion Shielding Device Trap Reconfigurator Storage Medium Storage Unit Protection Propulsion Shielding Weapon Shotgun Energy Gun Improved Medium Laser Energy Cannon Beam Cannon Ballistic Gun Shotgun Ballistic Cannon Light Cannon Launcher Rocket Launcher Build | -11 -10 -10 -10 -9 -8 ------- Run | Yrd Mat Min Exi Min Mat Slots Evolved 4 | . . . . . 4 Power . | . . . . . . Propulsion 2 | . . . . . 2 Utility 2 | . . . . . 2 Weapon . | . . . . . . Parts Attached 54 | 7 10 8 . 3 26 Power 4 | 1 . 2 . 1 . Engine 3 | 1 . 1 . 1 . Core 1 | . . 1 . . . Reactor . | . . . . . . Propulsion 14 | 2 2 . . 1 9 Treads . | . . . . . . Leg 6 | 2 . . . . 4 Wheel 7 | . 2 . . 1 4 Hover . | . . . . . . Flight 1 | . . . . . 1 Utility 13 | 2 2 3 . 1 5 Device 3 | 1 . 1 . . 1 Storage 2 | 1 1 . . . . Processor . | . . . . . . Hackware . | . . . . . . Protection 8 | . 1 2 . 1 4 Artifact . | . . . . . . Weapon 23 | 2 6 3 . . 12 Energy Gun 6 | . 1 1 . . 4 Energy Cannon 2 | . 1 1 . . . Ballistic Gun 7 | 2 . . . . 5 Ballistic Cannon 7 | . 4 . . . 3 Launcher 1 | . . 1 . . . Special Weapon . | . . . . . . Impact Weapon . | . . . . . . Slashing Weapon . | . . . . . . Piercing Weapon . | . . . . . . Special Melee Weapon . | . . . . . . Unidentified Prototypes 5 | . 1 1 . . 3 Parts Lost 4 | . 1 1 . . 2 Power . | . . . . . . Propulsion . | . . . . . . Utility 1 | . . . . . 1 Weapon 3 | . 1 1 . . 1 Highest Loss Streak 2 | . 1 1 . . 2 To Critical Strikes . | . . . . . . Average Slot Usage (%) 92 | . 99 97 100 97 87 Engine 8 | . 14 5 . 1 9 Core 2 | . . 8 14 12 . Leg 12 | . 7 . . . 20 Wheel 15 | . 20 28 28 25 7 Device 5 | . 4 . . . 9 Storage 11 | . 14 14 14 14 9 Protection 14 | . 9 14 14 14 17 Energy Gun 2 | . . 3 14 14 . Ballistic Gun 7 | . 7 . . . 11 Ballistic Cannon 8 | . 18 13 . . 3 Launcher 1 | . . 3 14 14 . Naked Turns . | . . . . . . Heaviest Build 41 | 15 22 23 23 28 41 Greatest Support 80 | 20 24 24 24 28 80 Greatest Overweight (x) 11 | . . . . . 11 Average Overweight (x) . | . . . . . . Largest Inventory Capacity 10 | 8 10 10 10 10 10 Average Capacity 9 | 6 8 10 10 10 10 Most Carried 10 | 3 10 10 10 10 10 Average Carried 8 | 2 7 9 9 9 9 Final Capacity 10 | 8 10 10 10 10 10 Final Carried 10 | 3 10 9 10 10 8 Class Distribution -------------------- 100% | Mutant Dominant Class ---------------- Mutant | -10/Materials Mutant | -10/Mines Mutant | -10/Exiles Mutant | -9/Mines Mutant | -8/Materials Resources | -11 -10 -10 -10 -9 -8 ----------- Run | Yrd Mat Min Exi Min Mat Matter Collected 1713 | 294 428 324 . 20 647 Remotely . | . . . . . . Salvage Created 1753 | 111 483 379 . . 780 Parts 99 | 6 29 28 . . 36 Haulers Intercepted 5 | . 1 . . . 4 Recyclers Shooed 6 | 1 3 . . . 2 Parts Field Recycled . | . . . . . . Retrieved Matter . | . . . . . . Parts Self-Destructed . | . . . . . . Prevented . | . . . . . . Kills | -11 -10 -10 -10 -9 -8 ------- Run | Yrd Mat Min Exi Min Mat Combat Hostiles Destroyed 41 | . 10 17 . . 14 Guns 8 | . 6 . . . 2 Cannons 33 | . 4 17 . . 12 Classes Destroyed 9 | 2 5 . . . 2 Worker 3 | . 2 . . . 1 Builder 2 | . . . . . 2 Tunneler 4 | 1 . 2 . . 1 Hauler 5 | . 1 . . . 4 Recycler 5 | 1 2 . . . 2 Watcher 4 | . 3 . . . 1 Swarmer 16 | . 6 9 . . 1 Grunt 20 | . 4 8 . . 8 Sentry 5 | . . . . . 5 Best Kill Streak 8 | 2 4 5 . . 8 Combat Bots Only 5 | . 3 5 . . 5 Max Kills in Single Turn 2 | 1 2 1 . . 1 Gunslinging 1 | . 1 . . . . Exploded . | . . . . . . Melee . | . . . . . . Uniques/NPCs Destroyed . | . . . . . . Combat | -11 -10 -10 -10 -9 -8 -------- Run | Yrd Mat Min Exi Min Mat Hostile Shots Fired 214 | . 33 76 . 3 102 Missed 51 | . 7 19 . 1 24 Damage Taken 2118 | . 270 570 . 22 1256 Core 292 | . 42 79 . 12 159 Absorbed by Shields . | . . . . . . Redirected to Shielding 144 | . 11 39 . 3 91 Regen/Repaired (Parts) 264 | . . . . . 264 Core Remaining (%) 73 | 100 . . . 46 . Volleys Fired 177 | 4 46 40 . 3 84 Largest 2 | 2 2 2 . 1 2 Hottest 126 | 40 70 95 . 56 126 Shots Fired 294 | 8 92 75 . 3 116 Gun 125 | 8 50 . . 3 64 Cannon 169 | . 42 75 . . 52 Launcher . | . . . . . . Special . | . . . . . . Kinetic 277 | 8 92 67 . . 110 Thermal 17 | . . 8 . 3 6 Explosive . | . . . . . . Electromagnetic . | . . . . . . Robot Hit Streak 16 | 3 7 16 . 5 10 Robot Miss Streak 6 | 2 6 3 . . 5 Penetration Max 1 | . . . . . 1 Secondary Targets 1 | . 1 . . . . Max Gunslinging Chain 1 | . 1 . . . . Shots Hit Robots 183 | 4 47 43 . 3 86 Core Hits 81 | 3 21 23 . . 34 Critical Kills . | . . . . . . Critical Parts Destroyed . | . . . . . . Critical Strikes 9 | . 1 1 . 1 6 Burn 1 | . . . . 1 . Blast 8 | . 1 1 . . 6 Melee Attacks . | . . . . . . Impact . | . . . . . . Slashing . | . . . . . . Piercing . | . . . . . . Sneak Attacks . | . . . . . . Combat Hostiles . | . . . . . . Follow-up Attacks . | . . . . . . Damage Inflicted 4489 | 48 748 795 . 53 2845 Guns 1152 | 48 334 . . 53 717 Cannons 3337 | . 414 795 . . 2128 Explosions . | . . . . . . Melee . | . . . . . . Ramming . | . . . . . . Kinetic 4266 | 48 748 692 . . 2778 Thermal 223 | . . 103 . 53 67 Explosive . | . . . . . . Electromagnetic . | . . . . . . Impact . | . . . . . . Slashing . | . . . . . . Piercing . | . . . . . . Highest Corruption . | . . . . . . Average Corruption . | . . . . . . Corruption Purged . | . . . . . . Corruption Blocked . | . . . . . . Overload Shots . | . . . . . . Overflow Damage 143 | . . 13 . . 130 Projectiles 143 | . . 13 . . 130 Explosions . | . . . . . . Melee . | . . . . . . Knockbacks 11 | . 1 6 . . 4 Impact . | . . . . . . Kinetic 11 | . 1 6 . . 4 Secondary . | . . . . . . Self-Inflicted Damage . | . . . . . . Shots . | . . . . . . Rammed . | . . . . . . Targets Rammed . | . . . . . . Kicked . | . . . . . . Crushed . | . . . . . . Highest Temperature 318 | . 89 228 . 72 318 Average Temperature 61 | . 27 64 . 42 76 Received Heat Transfer 693 | . 102 120 . 12 459 Siege Activations . | . . . . . . Robots Corrupted . | . . . . . . Combat Hostiles . | . . . . . . Parts Fried . | . . . . . . Impact Corruptions . | . . . . . . Robots Melted . | . . . . . . Combat Hostiles . | . . . . . . Parts Melted . | . . . . . . Heat Transferred 555 | . . 222 . 185 148 Parts Sabotaged . | . . . . . . Parts Stolen . | . . . . . . Parts Stripped . | . . . . . . Power Chain Reactions . | . . . . . . Alert | -11 -10 -10 -10 -9 -8 ------- Run | Yrd Mat Min Exi Min Mat Peak Influence 487 | 10 230 487 . . 379 Initial 30 | . 6 30 . . . Average 119 | 1 82 352 . . 75 Maximum Alert Level 2 | . 1 2 . . 1 Low Security (%) 72 | 100 84 6 . 100 85 Level 1 18 | . 15 42 . . 14 Level 2 8 | . . 51 . . . Level 3 . | . . . . . . Level 4 . | . . . . . . Level 5 . | . . . . . . High Security . | . . . . . . Max Security . | . . . . . . Squads Dispatched 8 | . 2 . . 1 5 Investigation 6 | . 2 . . 1 3 Extermination . | . . . . . . Reinforcement 2 | . . . . . 2 Assault . | . . . . . . Garrison . | . . . . . . Intercept . | . . . . . . Searches Triggered . | . . . . . . Construction Impeded . | . . . . . . Haulers Reinforced . | . . . . . . Active Scanning Responses . | . . . . . . Cargo Convoy Interrupts . | . . . . . . Stealth | -11 -10 -10 -10 -9 -8 --------- Run | Yrd Mat Min Exi Min Mat Distress Signals 3 | . 2 . . . 1 Communications Jammed . | . . . . . . Distress Signals . | . . . . . . Times Spotted 64 | . 15 20 . 1 28 Peak Tracking Total 7 | . 3 5 . 1 7 Tactical Retreats 4 | . . 1 . . 3 Traps | -11 -10 -10 -10 -9 -8 ------- Run | Yrd Mat Min Exi Min Mat Traps Triggered 1 | . 1 . . . . Indirectly . | . . . . . . Trap Hack Attempts . | . . . . . . Triggered . | . . . . . . Disarmed . | . . . . . . Reprogrammed . | . . . . . . Reused 2 | . . . . . 2 Traps Reconfigurated 8 | . . . . . 8 Traps Extracted . | . . . . . . Installed . | . . . . . . Triggered 2 | . . . . . 2 Machines | -11 -10 -10 -10 -9 -8 ---------- Run | Yrd Mat Min Exi Min Mat Machines Disabled 2 | . . 1 . . 1 Max in Single Turn 1 | . . 1 . . 1 Machines Repaired . | . . . . . . Machines Dismantled . | . . . . . . Machines Sabotaged . | . . . . . . Overloaded Fab Kills . | . . . . . . Hacking | -11 -10 -10 -10 -9 -8 --------- Run | Yrd Mat Min Exi Min Mat Machines Accessed 17 | . 6 . 1 1 9 Terminals 13 | . 6 . . . 7 Fabricators . | . . . . . . Repair Stations 2 | . . . . . 2 Recycling Units . | . . . . . . Scanalyzers . | . . . . . . Garrison Access . | . . . . . . Total Hacks 48 | . 19 . 1 1 27 Successful 35 | . 11 . 1 1 22 Failed 13 | . 8 . . . 5 Catastrophic 2 | . 2 . . . . Database Lockouts . | . . . . . . Manual 34 | . 19 . 1 . 14 Terminals 33 | . 19 . . . 14 Fabricators . | . . . . . . Repair Stations 13 | . . . . . 13 Recycling Units . | . . . . . . Scanalyzers . | . . . . . . Garrison Access . | . . . . . . Terminal Hacks 9 | . 5 . 1 1 2 Prototype ID Bank 1 | . 1 . . . . Open Door 1 | . . . . 1 . Emergency Access Points 1 | . . . . . 1 Terminal Index 1 | . 1 . . . . Alert Level 1 | . . . . . 1 Locate Traps 1 | . 1 . . . . Recall Investigation 1 | . 1 . . . . Registered Components 1 | . 1 . . . . Derelict Proto ID Bank 1 | . . . 1 . . Fabricator Hacks . | . . . . . . Repair Station Hacks 12 | . . . . . 12 Scan Component 6 | . . . . . 6 Repair 6 | . . . . . 6 Recycling Unit Hacks . | . . . . . . Scanalyzer . | . . . . . . Garrison Access Hacks . | . . . . . . Unauthorized Hacks 14 | . 6 . . . 8 Terminals 14 | . 6 . . . 8 Assimilate 2 | . . . . . 2 Botnet 11 | . 5 . . . 6 Operators 1 | . 1 . . . . Fabricators . | . . . . . . Repair Stations . | . . . . . . Recycling Units . | . . . . . . Scanalyzers . | . . . . . . Garrison Access . | . . . . . . Data Cores Recovered . | . . . . . . Used . | . . . . . . Hacking Detections 13 | . 5 . . . 8 Full Trace Events 4 | . 1 . . . 3 Feedback Events . | . . . . . . Feedback Blocked . | . . . . . . Robot Schematics Acquired . | . . . . . . Robots Built . | . . . . . . Authchips . | . . . . . . Time . | . . . . . . Total Robot Build Rating . | . . . . . . Part Schematics Acquired . | . . . . . . Parts Built . | . . . . . . Authchips . | . . . . . . Time . | . . . . . . Total Part Build Rating . | . . . . . . Parts Repaired 6 | . . . . . 6 Time 304 | . . . . . 304 Parts Recycled . | . . . . . . Recycled Matter . | . . . . . . Retrieved Matter . | . . . . . . Retrieved Components . | . . . . . . Parts Scanalyzed . | . . . . . . Part Schematics Acquired . | . . . . . . Parts Damaged . | . . . . . . Bothacking | -11 -10 -10 -10 -9 -8 ------------ Run | Yrd Mat Min Exi Min Mat Used RIF Installer . | . . . . . . Robots Hacked . | . . . . . . Non-combat . | . . . . . . Combat . | . . . . . . Robot Hacks Applied . | . . . . . . Relay Couplers Released . | . . . . . . Fabnet Peak Effective % . | . . . . . . Robots Rewired . | . . . . . . Allies Hacked . | . . . . . . Hacks Repelled . | . . . . . . Allies | -11 -10 -10 -10 -9 -8 -------- Run | Yrd Mat Min Exi Min Mat Total Allies 2 | . . 1 . . 1 Largest Group 1 | . . 1 . . 1 Highest-Rated Group 31 | . . 31 . . 10 Highest-Rated Ally 31 | . . 31 . . 10 Total Orders . | . . . . . . Ally Attacks 18 | . . 18 . . . Total Damage 192 | . . 192 . . . Kills 5 | . . 5 . . . Allies Corrupted . | . . . . . . Allies Melted . | . . . . . . Intel | -11 -10 -10 -10 -9 -8 ------- Run | Yrd Mat Min Exi Min Mat Robot Analysis Total . | . . . . . . Derelict Logs Recovered 4 | . . 2 . 2 . Drone Launches . | . . . . . . Drone Recoveries . | . . . . . . Exploration | -11 -10 -10 -10 -9 -8 ------------- Run | Yrd Mat Min Exi Min Mat Turns Passed 4979 | 98 1128 782 309 162 2500 Spaces Moved 2985 | 62 932 507 343 158 983 Core 5 | 3 . . . . 2 Treads . | . . . . . . Legs 907 | 59 180 . . . 668 Wheels 2073 | . 752 507 343 158 313 Hover . | . . . . . . Flight . | . . . . . . Fastest Speed 50 | 50 90 90 90 90 100 Average Speed 102 | 116 95 90 90 90 121 Slowest Speed 600 | 120 120 90 90 100 600 Overloaded Moves . | . . . . . . Propulsion Burnouts . | . . . . . . Robots Hopped . | . . . . . . Cave-ins Triggered . | . . . . . . Exploration Rate (%) 60 | 4 97 84 85 37 58 Regions Visited 5 Branch Regions 3 Pre-discovered Areas 1 | . . 1 . . . Known Exits Taken . | . . . . . . Unknown Exits Taken 5 | 1 1 1 1 1 . Scrap Searched 5 | . . 3 . 2 . Spaces Dug . | . . . . . . Terrain Destroyed 15 | . . . . . 15 Melee . | . . . . . . Projectile 15 | . . . . . 15 AOE . | . . . . . . Terrain Rammed . | . . . . . . Walls Destroyed . | . . . . . . Machines Disabled . | . . . . . . Actions | -11 -10 -10 -10 -9 -8 --------- Run | Yrd Mat Min Exi Min Mat Total 4584 | 76 1082 757 343 176 2150 Wait 1269 | 1 57 195 . 1 1015 Move 2980 | 61 931 506 342 157 983 Hop . | . . . . . . Pick Up 43 | 3 15 2 1 4 18 Fast Attach 33 | 7 7 2 . 1 16 Attach 8 | . 1 . . . 7 Detach 6 | . 5 . . . 1 Swap 14 | . 3 6 . 2 3 Drop 54 | . 17 6 . 8 23 Fire 177 | 4 46 40 . 3 84 Melee . | . . . . . . Ram . | . . . . . . Kick . | . . . . . . Crush . | . . . . . . Escape Stasis . | . . . . . . Rewire . | . . . . . . Trap . | . . . . . . Miscellaneous . | . . . . . . Route ------- -11/Scrapyard -10/Materials (discovered 5 exits: [*Mat x3] / [*Min x2]) -10/Mines (discovered 2 exits: [*Mat] / *Exi) -10/Exiles -9/Mines -8/Materials (discovered 2 exits: *Fac x2) History --------- Turn | Location | Event 2 | -11/Scrapyard | Discovered new exit (range 16) 99 | -11/Scrapyard | Entered Materials 206 | -10/Materials | Discovered new exit (range 10) 301 | -10/Materials | Build established: Mutant 537 | -10/Materials | Discovered new exit (range 14) 604 | -10/Materials | Discovered new exit (range 13) 958 | -10/Materials | Discovered new exit (range 5) 992 | -10/Materials | Discovered new exit (range 16) 1227 | -10/Materials | Entered Mines 1343 | -10/Mines | Escorted by a lone wolf Derelict 1451 | -10/Mines | Discovered new exit (range 8) 1469 | -10/Mines | Learned location of 1 exit from Materials 1473 | -10/Mines | Learned location of Storage (-9) 1608 | -10/Mines | Found a damaged Exp. Sensor Array with a note attached 1610 | -10/Mines | Found Prototype Device 1612 | -10/Mines | Identified Exp. Sensor Array 1803 | -10/Mines | Received a Rocket Launcher from a helpful Derelict 2006 | -10/Mines | Deemed a non-threat by the Exiles lab entrance 2006 | -10/Mines | Discovered new exit (range 5) 2009 | -10/Mines | Entered Exiles 2033 | -10/Exiles | Met 8R-AWN 2048 | -10/Exiles | Met EX-HEX 2076 | -10/Exiles | Met EX-BIN 2087 | -10/Exiles | Aligned with FarCom system 2088 | -10/Exiles | Given EX-Vault access code 2109 | -10/Exiles | Opened EX-Vault 2117 | -10/Exiles | Found Trap Reconfigurator 2136 | -10/Exiles | Warned to stay clear of 0b10 Research branches 2161 | -10/Exiles | Met EX-DEC 2192 | -10/Exiles | Visited The Gauntlet 2307 | -10/Exiles | Discovered new exit (range 14) 2318 | -10/Exiles | Left Exiles lab with Trap Reconfigurator 2318 | -10/Exiles | Entered Mines 2338 | -9/Mines | Assembled infested the area 2355 | -9/Mines | Learned Materials trap positions 2382 | -9/Mines | Learned Materials interactive machine intel 2436 | -9/Mines | Discovered new exit (range 8) 2445 | -9/Mines | Met a Derelict shopkeep closing up shop 2449 | -9/Mines | Core integrity fell below 50% 2480 | -9/Mines | Entered Materials 2480 | -8/Materials | Evolved 4 slots: Propulsion x2, Utility x2 2481 | -8/Materials | Identified exit to Factory 2482 | -8/Materials | Loaded intel: 15 trap records 2483 | -8/Materials | Loaded intel: 19 interactive machine locations 2927 | -8/Materials | Repaired Airjet 2972 | -8/Materials | Repaired Arm. Huge Wheel 3018 | -8/Materials | Repaired Arm. Huge Wheel 3127 | -8/Materials | Repaired Exp. Sensor Array 4401 | -8/Materials | Repaired Propulsion Shielding 4446 | -8/Materials | Repaired Imp. Medium Armor Plating 4493 | -8/Materials | Discovered exit to Factory (range 9) 4980 | -8/Materials | Self-destructed Last Messages --------------- 04964_ G-50 Soldier destroyed. 04964_ K-01 Serf collects debris. 04964_ R-06 Scavenger collects Terrain Scan Processor. 04966_ Slug penetrates H-61 Shepherd. 04966_ T-07 Excavator suffers critical hit (Blast). 04966_ Destroyed Mining Laser. 04966_ T-07 Excavator destroyed. 04967_ Hvy. Assault Cannon destroyed. 04967_ Knocked back. 04967_ K-01 Serf collects debris. 04969_ Slug penetrates Wall. 04969_ T-07 Excavator destroyed. 04969_ R-06 Scavenger collects Lgt. Nuclear Core. 04970_ K-01 Serf collects debris. 04974_ W-25 Informer sends out distress signal. 04974_ Knocked back. 04974_ K-01 Serf collects debris. 04975_ U-05 Engineer builds a Wall. 04976_ Knocked back. 04977_ K-01 Serf collects debris. Map ----- +----------------------------------------------------+ | ??????????????????????????????????????????"""T"""# | | ????????????????????????????????????????????? | | ????????????????????????????????????????????? | | ???????????????????????????????????????????????"" | | ?????????????????????????????????????????????????? | | ?????????????????????????????????????????????????? | | ?????????????????????????????????????????????????? | | ?????????????????????? ??????????????????????? | | ???????^^^^^^????????? ! ]???h??????????????????? | | ?????????????????????? %??????????????????????? | | ?????????????????????? % ??????????????????????? | | ?????????????? ??????? % %??????????????????????? | | ???????????????"####?## #??###?????????????????? | | ???????????????# !? # #? #?????????????????? | | ???????????????? ! ?# !=#? #?????????????????? | | ????????????????? ?+%%*+? #?????????????????? | | ????????????T????? ! #=*%# [ #?????????????????? | | ??????????????????? #%[[# #?????????????????? | | ???????????????????? #s[|# !]]#?????????????????? | | ???????????????#####?##sHk# ]] #?????????????????? | | ??????????????? ?#%%!! ]] #?????????????????? | | ???????????????? """ # !s%= ??????????????????? | | ?????????????????"""" + ;#?????????????#???????? | | ???????????????""" " # ! ##?????????????# ??????? | | ?????????????gg???g???# !=;#?????????????# ????## | | ??? ?????????#######/%@#??????????????# #### | | ??? ?????????# #%w #??????????????# | | ???# ?????????# """ # % #??????????????# | | ???# #????????# """ # ##?????????????# | | ???# #????????# """ + ########???????######## | | ???# +????????# #u #??????????????## | | ???# #????????# # #?????########### | | ???# #????????# " " # T #?????# # | | ???# #????????# "R" # #?????# + | | ???# #????????# """ # ####??# / # | | ???# #????????####### """" #T"#??# [ # | | ???# ################ """" # "############## | | #### [! """" | | # %%[ | | # [[=[[ | | # ########" ########+#############+########## | | # #??????## #????? ????????# [ #?????? | | # #########+###??#""" * #??????# ] #?????? | | # " = [[ ##?#""" #??????# [ #?????? | | # + !""" #?#""" #??????# ! [ !#?????? | | # # ! ! """[ ##?#""" #??????# #?????? | | # # """ "#??# #??????# #?????? | | # # [ ] """[T#????######??????########?????? | | # # [ ] """ "#?????????????????????????????? | | # # [] #?????????????????????????????? | +----------------------------------------------------+ Best States ------------- Heat Dissipation 31 Energy Generation 16 Energy Capacity 290 Matter Stores 300 Matter Capacity 300 Sight Range 16 Terrain Scan Density 10 Armor Coverage 225 Propulsion Shielding 33 Evasion (%) 55 Item Schematics ----------------- None Robot Schematics ------------------ None Fabricated ------------ Nothing Alien Tech Used ----------------- None Achievements -------------- None Challenges ------------ None Game ------ Seed ProjectionHypercooledLattice Manual? 0 Play Time 00:43:18 Cumulative 33.8 hours Start 2024.06.12 @ 09:15:32 End 2024.06.12 @ 09:55:58 Sessions 1 Manual Loads 0 Difficulty Rogue Special Mode None Game No. 73 Rogue 73 Adventurer 0 Explorer 0 Win Type - Total 0 Types 0/0/0/0/0/0/0/0/0 Lore% 22 Gallery% 28 Achievement% 23 Wizard Run 0 Options --------- Layout 0 ASCII 0 Keyboard 0 Movement Mouse Keybinds 0 Fullscreen 2 Font 18/Terminus Map View 76x50 Zoom Use 0% Tactical HUD 1 Map Filters NONE Filters NONE Steam 1 RUN: 33e9a9aa-7b96-43ee-8b3f-783a73d6c682